bitfinex/quotes_ETHUSD_20240926
["timestamp","ask_amount","ask_price","bid_price","bid_amount"]
[1727359373125,0.7687,2625.2,2625.1,0.0381239]
[1727359373429,1.607397,2625.2,2625.1,0.0381239]
[1727359373629,4.57793,2625.2,2625.1,0.0381239]
[1727359373994,9.36033454,2625.2,2625.1,0.0381239]
[1727359374193,9.26509065,2625.2,2625.1,0.0381239]
[1727359377029,0.7687,2625.2,2625.1,0.0381239]
[1727359377731,4.57793,2625.2,2625.1,0.0381239]
[1727359378032,5.03571,2625.2,2625.1,0.0381239]
[1727359378330,9.72287065,2625.2,2625.1,0.0381239]
[1727359379136,5.03571,2625.2,2625.1,0.0381239]
[1727359379372,4.57793,2625.2,2625.1,0.0381239]
[1727359379511,0.7687,2625.2,2625.1,0.0381239]
[1727359380005,3.80923,2625.2,2625.1,0.0381239]
[1727359380337,0.7524,2625.4,2625.1,0.0381239]
[1727359380338,3.80917,2625.3,2625.1,0.0381239]
[1727359380652,4.265327,2625.3,2625.1,0.0381239]
[1727359380933,4.56135,2625.4,2625.1,0.0381239]
[1727359382440,8.37304276,2625.4,2625.1,0.0381239]
[1727359382636,3.80866,2625.6,2625.1,3.8474839]
[1727359382637,8.38385276,2625.6,2625.1,3.8474839]
[1727359382797,8.38385276,2625.6,2625.1,0.0381239]
[1727359382996,3.80883,2625.5,2625.1,0.0381239]
[1727359383191,8.38387276,2625.6,2625.1,3.8474639]
[1727359383893,12.19261276,2625.6,2625.1,3.8474639]
[1727359384241,12.19264276,2625.6,2625.1,3.8474639]
[1727359384539,3.80881,2625.5,2625.1,0.0381239]
[1727359384740,7.62050276,2625.5,2625.1,0.0381239]
[1727359384909,3.81169276,2625.3,2625.1,0.0381239]
[1727359385242,3.80923,2625.2,2625.1,0.0381239]
[1727359386433,7.62077276,2625.3,2625.1,0.0381239]
[1727359386646,11.42994276,2625.3,2625.1,0.0381239]
[1727359387098,3.80888,2625.5,2625.2,0.7856]
[1727359387294,4.59255,2625.8,2625.3,3.80904]
[1727359387491,3.80851,2625.7,2625.2,4.59472]
[1727359387734,3.0,2625.8,2625.3,3.80896]
[1727359387892,3.80833,2625.9,2625.3,3.80896]
[1727359387893,7.61663,2625.9,2625.3,3.80896]
[1727359388095,3.80837,2625.8,2625.2,8.40387]
[1727359388340,3.80837,2625.8,2625.3,3.80905]
[1727359388496,4.63869276,2626.0,2625.4,3.80886]
[1727359388699,3.80822,2625.9,2625.4,3.80886]
[1727359388913,7.61657,2625.9,2625.4,3.80886]
[1727359389124,3.80822,2625.9,2625.4,3.80886]
[1727359389835,3.80822,2625.9,2625.2,4.59475]
[1727359390036,3.80853,2625.7,2625.2,4.59475]
[1727359390240,7.62006276,2625.8,2625.3,3.80905]
[1727359390901,7.62006276,2625.8,2625.2,4.59475]
[1727359390902,3.81169276,2625.8,2625.4,3.80885]
[1727359391101,3.80822,2625.9,2625.4,3.80885]
[1727359391332,3.80822,2625.9,2625.5,3.80877]
[1727359391637,3.80822,2625.9,2625.4,3.80885]
[1727359392298,3.81169276,2626.0,2625.5,3.80877]
[1727359392537,3.80803,2626.1,2625.6,3.80854]
[1727359392721,3.80803,2626.1,2625.7,4.5607]
[1727359393048,0.09521047,2626.0,2625.7,0.7522]
[1727359393539,3.81169276,2625.8,2625.2,4.58281]
[1727359393705,0.09522171,2625.7,2625.2,4.58281]
[1727359394041,0.09522171,2625.7,2625.2,0.7737]
[1727359394042,3.80866,2625.6,2625.2,0.7737]
[1727359394257,7.62035276,2625.6,2625.2,0.7737]
[1727359394410,4.56122,2625.7,2625.2,4.58282]
[1727359394745,0.7527,2625.9,2625.2,0.7737]
[1727359394914,0.7527,2625.9,2625.4,3.80881]
[1727359394915,4.56094,2625.9,2625.4,3.80881]
[1727359395245,0.3,2626.3,2625.2,0.7737]
[1727359395246,0.7527,2626.1,2625.5,3.80867]
[1727359395399,11.40878276,2626.4,2625.7,0.7942]
[1727359395751,7.61898276,2626.6,2626.0,3.80807]
[1727359395933,3.80736,2626.5,2626.0,3.80807]
[1727359396248,3.80736,2626.5,2625.9,3.80809]
[1727359396539,3.80736,2626.5,2626.0,3.80804]
[1727359396748,3.80736,2626.5,2625.9,3.80809]
[1727359396749,7.61918276,2626.4,2625.9,3.80809]
[1727359397507,3.81169276,2626.4,2626.0,3.80806]
[1727359398509,7.61896276,2626.6,2626.1,3.80785]
[1727359398709,3.80744,2626.5,2626.0,3.80806]
[1727359399016,1.22156128,2626.5,2626.1,3.80788]
[1727359399218,7.61896276,2626.6,2626.1,3.80788]
[1727359399434,7.61896276,2626.6,2626.2,3.80775]
[1727359399632,0.7895,2626.7,2626.3,3.80762]
[1727359399843,3.7728,2626.9,2626.5,3.80734]
[1727359400006,3.7728,2626.9,2626.4,3.80749]
[1727359400007,0.7728,2626.9,2626.6,3.80719]
[1727359400353,4.20462105,2627.4,2626.8,3.80691]
[1727359400354,3.80618,2627.3,2626.8,3.80691]
[1727359400644,4.59556,2627.5,2626.9,3.80668]
[1727359400802,4.59556,2627.5,2626.8,4.60084]
[1727359400803,0.380596,2627.4,2626.8,4.60084]
[1727359401009,4.186636,2627.4,2626.9,3.80675]
[1727359401255,4.19228876,2627.4,2626.8,4.60084]
[1727359401414,0.380596,2627.4,2626.8,4.60084]
[1727359401613,3.8057,2627.7,2626.9,0.07613481]
[1727359401848,0.7734,2627.8,2627.2,3.80619]
[1727359402008,3.81169276,2627.6,2627.2,0.7753]
[1727359402326,0.45850928,2627.6,2627.2,4.5815]
[1727359402521,8.39059276,2627.8,2627.2,4.5815]
[1727359403451,3.80562,2627.7,2627.2,4.5815]
[1727359403760,7.61747276,2627.6,2626.9,0.773]
[1727359404315,4.62439276,2627.2,2626.8,3.80688]
[1727359404654,0.8127,2627.2,2626.8,3.80688]
[1727359405322,8.43079276,2627.2,2626.6,4.61582]
[1727359405528,1.22369728,2627.1,2626.6,4.61582]
[1727359405951,1.22369728,2627.1,2626.8,3.8069]
[1727359406116,0.8313,2627.4,2626.9,3.80666]
[1727359406450,3.81169276,2627.2,2626.6,4.61582]
[1727359406748,7.61813276,2627.2,2626.7,3.80705]
[1727359406948,0.76181328,2627.1,2626.7,3.80705]
[1727359407452,4.63744,2627.4,2626.7,3.80705]
[1727359407652,8.44913276,2627.4,2626.7,3.80705]
[1727359407863,8.44913276,2627.4,2626.6,4.61582]
[1727359407864,0.8313,2627.4,2627.0,3.80654]
[1727359408055,0.8313,2627.4,2626.9,3.80672]
[1727359408351,4.64299276,2627.4,2627.0,3.80662]
[1727359408919,8.44906276,2627.4,2626.8,7.61367]
[1727359409117,8.44911276,2627.4,2626.8,3.80683]
[1727359409349,0.79650715,2627.3,2626.8,3.80683]
[1727359409648,0.8313,2627.4,2626.9,3.80675]
[1727359409857,3.80555,2627.8,2626.6,0.8087]
[1727359409858,4.58962,2627.7,2627.2,3.80631]
[1727359410069,0.784,2627.7,2627.4,3.80602]
[1727359410415,0.784,2627.9,2627.6,3.80573]
[1727359410622,0.0381239,2628.3,2627.6,3.80573]
[1727359410623,0.8221239,2628.3,2628.1,3.805]
[1727359411166,0.8221239,2628.3,2627.9,3.8053]
[1727359411333,0.8221239,2628.3,2627.8,0.7792]
[1727359411334,0.8221239,2628.3,2628.1,3.805]
[1727359411535,0.0381239,2628.3,2628.1,3.80493]
[1727359412171,0.0381239,2628.3,2627.9,3.80523]
[1727359412330,0.0381239,2628.3,2628.0,3.80516]
[1727359412660,0.0381239,2628.3,2628.2,3.80488]
[1727359414163,0.0381239,2628.3,2628.2,4.58568]
[1727359414866,0.0381239,2628.3,2628.2,7.66172282]
[1727359415078,0.0381239,2629.1,2628.2,7.66172282]
[1727359415079,0.0381239,2629.1,2628.2,7.35488]
[1727359415360,0.0381239,2629.1,2628.7,3.80408]
[1727359415862,0.0381239,2629.1,2629.0,3.80372]
[1727359416064,0.0381239,2629.1,2629.0,3.87972071]
[1727359416422,0.0381239,2629.1,2629.0,6.80372]
[1727359417440,0.0381239,2629.1,2629.0,6.87968569]
[1727359417630,0.0381239,2629.1,2629.0,6.80372]
[1727359418367,4.6504539,2629.9,2629.3,3.80317]
[1727359418579,1.69329729,2629.9,2629.3,3.80317]
[1727359418748,5.49579729,2629.9,2629.3,3.80317]
[1727359419066,5.49579729,2629.9,2629.1,3.8035]
[1727359419067,3.80259,2629.8,2629.1,3.8035]
[1727359419268,3.803,2629.6,2629.0,3.0]
[1727359419473,3.803,2629.6,2628.9,4.56903]
[1727359419474,3.803,2629.5,2628.9,4.56903]
[1727359419625,3.803,2629.6,2628.9,4.56903]
[1727359419820,3.80299,2629.6,2628.9,4.56903]
[1727359420276,3.80299,2629.6,2629.0,3.80369]
[1727359420427,4.71359107,2629.6,2628.9,3.80373]
[1727359420627,0.54958873,2629.7,2628.7,3.8041]
[1727359420628,3.8033,2629.3,2628.7,3.8041]
[1727359420973,3.80319,2629.4,2628.3,0.7678]
[1727359421270,7.60643,2629.4,2628.8,3.80399]
[1727359421478,4.264389,2629.4,2628.8,3.80399]
[1727359421969,3.8033,2629.3,2628.7,3.80407]
[1727359422169,3.8033,2629.3,2628.7,7.60813]
[1727359422476,4.78604168,2629.3,2628.7,3.80406]
[1727359422625,3.80348,2629.2,2628.7,3.80406]
[1727359422828,3.80373,2629.0,2628.5,3.80435]
[1727359423030,0.7729,2628.9,2628.5,3.80435]
[1727359423466,0.7729,2628.9,2628.6,3.80429]
[1727359423678,0.8175,2629.1,2628.7,3.80407]
[1727359423845,0.8175,2629.1,2628.7,7.60813]
[1727359424351,0.8175,2629.1,2628.7,3.80406]
[1727359424869,0.8175,2629.1,2628.7,7.60813]
[1727359425169,0.8876489,2629.3,2628.9,3.80379]
[1727359425367,4.60657,2629.4,2628.9,3.80379]
[1727359425368,4.60657,2629.4,2628.9,7.60758]
[1727359425534,1.644349,2629.4,2628.9,3.80379]
[1727359425737,0.8034,2629.4,2629.1,3.80357]
[1727359425960,0.8034,2629.4,2629.1,7.60714]
[1727359426167,0.54958873,2629.7,2629.2,3.80343]
[1727359426168,1.33628873,2629.7,2629.2,3.80343]
[1727359426376,1.33628873,2629.7,2629.1,3.80357]
[1727359426577,1.33628873,2629.7,2629.2,3.80332]
[1727359426732,1.33628873,2629.7,2629.1,3.80357]
[1727359427161,1.33628873,2629.7,2629.3,3.80327]
[1727359427162,0.7867,2629.7,2629.3,3.80327]
[1727359427546,0.0381239,2629.9,2629.1,3.80352]
[1727359427745,0.0381239,2629.9,2629.5,7.60579]
[1727359427983,0.0381239,2629.9,2629.5,3.80286]
[1727359428134,0.0381239,2629.9,2629.5,7.60577]
[1727359428339,0.0381239,2629.9,2629.5,3.80286]
[1727359428534,0.0381239,2629.9,2629.5,3.80299]
[1727359428735,0.0381239,2629.9,2629.5,7.60591]
[1727359429137,0.0381239,2629.9,2629.5,3.80292]
[1727359429368,0.0381239,2629.9,2629.5,3.80289]
[1727359429838,3.8405839,2629.9,2629.4,3.80314]
[1727359430039,0.0381239,2629.9,2629.5,3.80299]
[1727359430339,0.0381239,2629.9,2629.5,3.80291]
[1727359430976,3.8405939,2629.9,2629.3,3.80317]
[1727359431159,3.8405939,2629.9,2629.4,3.80303]
[1727359431348,3.80272,2629.7,2629.2,3.80339]
[1727359431553,3.80272,2629.7,2629.1,3.80357]
[1727359431763,3.80272,2629.7,2628.9,0.8001]
[1727359431764,0.7817,2629.5,2629.0,3.80361]
[1727359432082,0.7817,2629.5,2629.1,3.80356]
[1727359432083,1.33735478,2629.5,2629.1,3.80356]
[1727359432279,0.7817,2629.5,2629.1,3.80356]
[1727359432442,0.7817,2629.5,2629.2,3.80342]
[1727359433081,0.7817,2629.5,2629.1,3.80357]
[1727359433281,0.7817,2629.5,2628.9,4.60383]
[1727359433494,0.7817,2629.5,2629.1,3.80351]
[1727359434301,0.7817,2629.5,2629.2,3.80336]
[1727359434889,0.7817,2629.5,2628.8,3.80399]
[1727359435200,0.7817,2629.5,2629.1,3.8035]
[1727359435371,0.7817,2629.5,2628.6,4.58566]
[1727359435372,3.80356,2629.2,2628.7,3.80413]
[1727359435571,3.80358,2629.1,2628.7,3.80413]
[1727359436386,3.89853289,2629.2,2628.7,3.80413]
[1727359436697,0.77018429,2629.2,2628.8,3.80394]
[1727359436901,3.80331,2629.3,2628.8,3.80394]
[1727359437483,3.80315,2629.4,2628.9,3.80386]
[1727359437814,0.7817,2629.5,2628.9,0.8151]
[1727359438010,4.55569,2629.7,2629.2,3.80336]
[1727359438218,0.7529,2629.7,2629.2,3.80336]
[1727359438382,3.80302,2629.5,2629.1,3.80354]
[1727359438711,3.80291,2629.6,2629.2,3.80343]
[1727359438913,3.80291,2629.6,2629.1,3.80345]
[1727359439121,3.80291,2629.6,2629.1,7.60696]
[1727359439316,3.80301,2629.5,2629.1,3.80345]
[1727359439486,0.09508131,2629.6,2629.2,3.8034]
[1727359439674,3.89799131,2629.6,2629.1,3.80345]
[1727359440085,3.80291,2629.6,2629.1,3.8035]
[1727359440287,3.89799131,2629.6,2629.1,3.8035]
[1727359440475,3.80301,2629.5,2629.0,3.80371]
[1727359440695,3.80303,2629.5,2628.9,0.8151]
[1727359440897,3.80303,2629.5,2629.1,3.80357]
[1727359441099,7.70093131,2629.6,2629.1,3.80351]
[1727359441321,4.55563,2629.7,2629.2,3.80336]
[1727359441690,4.55563,2629.7,2629.1,3.80351]
[1727359441877,8.35855,2629.7,2629.1,3.80352]
[1727359442085,4.55572,2629.7,2629.3,3.80327]
[1727359442326,4.55572,2629.7,2628.9,3.80377]
[1727359442327,3.8031,2629.5,2628.9,3.80377]
[1727359442482,3.80324,2629.4,2629.0,3.80369]
[1727359442679,3.80324,2629.4,2628.9,3.80377]
[1727359442878,4.55573,2629.7,2629.2,3.80339]
[1727359443076,4.55562,2629.7,2629.1,3.80356]
[1727359443291,0.7529,2629.7,2629.5,7.60582]
[1727359443598,0.0381239,2629.9,2629.6,3.80284]
[1727359443906,0.0381239,2629.9,2629.8,3.80257]
[1727359444322,0.0381239,2629.9,2629.6,3.8028]
[1727359444539,0.0381239,2629.9,2629.2,0.8185]
[1727359444687,0.0381239,2629.9,2629.6,3.80277]
[1727359444880,0.0381239,2629.9,2629.8,3.80257]
[1727359445122,0.0381239,2629.9,2629.7,0.7777]
[1727359445333,0.0381239,2629.9,2629.8,3.87850608]
[1727359445626,0.0381239,2629.9,2629.7,4.58028]
[1727359445792,0.0381239,2629.9,2629.7,3.80258]
[1727359445992,0.0381239,2629.9,2629.6,3.80282]
[1727359446701,0.0381239,2629.9,2629.5,3.80294]
[1727359446899,0.0381239,2629.9,2629.5,3.80289]
[1727359447530,0.0381239,2629.9,2629.3,7.60642]
[1727359447696,0.0381239,2629.9,2629.3,3.80319]
[1727359447889,0.7963,2629.8,2629.3,3.80327]
[1727359448085,0.7963,2629.8,2629.5,3.80298]
[1727359448395,0.7963,2629.8,2629.3,3.80318]
[1727359448811,0.7963,2629.8,2629.4,3.80309]
[1727359449001,0.7963,2629.8,2629.2,3.80333]
[1727359449202,4.59895,2629.8,2629.2,3.80333]
[1727359449662,0.7963,2629.8,2629.4,3.80313]
[1727359449800,0.7963,2629.8,2629.3,3.80316]
[1727359450000,0.7963,2629.8,2629.1,3.80349]
[1727359450335,0.7963,2629.8,2629.4,3.8031]
[1727359450511,0.7963,2629.8,2629.3,3.80319]
[1727359450833,0.7963,2629.8,2629.4,3.80314]
[1727359451352,0.7963,2629.8,2629.3,3.80319]
[1727359451511,3.80287,2629.6,2629.1,3.80355]
[1727359451703,3.80294,2629.6,2628.9,3.80379]
[1727359451906,0.09508322,2629.5,2629.0,3.80362]
[1727359452105,3.80294,2629.6,2629.0,3.80362]
[1727359452326,7.60591,2629.6,2629.0,3.80362]
[1727359452541,7.60591,2629.6,2628.8,0.7947]
[1727359452542,0.840221,2629.6,2628.8,0.7947]
[1727359452839,4.59895,2629.8,2629.3,3.80326]
[1727359453041,0.7963,2629.8,2629.4,3.80306]
[1727359453244,0.7963,2629.8,2629.1,3.80351]
[1727359453413,3.80289,2629.6,2629.1,3.80351]
[1727359453610,3.80273,2629.7,2629.1,3.8035]
[1727359454103,3.80273,2629.7,2629.1,7.60699]
[1727359454302,3.80273,2629.7,2629.1,7.60698]
[1727359454537,0.7963,2629.8,2629.5,3.80297]
[1727359454841,0.7963,2629.8,2629.5,7.60589]
[1727359455042,0.7963,2629.8,2629.5,3.80292]
[1727359455404,0.7963,2629.8,2629.6,3.80278]
[1727359455600,0.0381239,2629.9,2629.3,0.7773]
[1727359455601,0.0381239,2629.9,2629.7,3.80271]
[1727359455806,0.0381239,2629.9,2629.8,3.80257]
[1727359457904,0.0381239,2629.9,2629.7,7.6053]
[1727359458149,0.0381239,2629.9,2629.7,3.80261]
[1727359459118,0.0381239,2629.9,2629.8,3.80257]
[1727359459767,0.0381239,2629.9,2629.8,4.62727]
[1727359459938,0.0381239,2629.9,2629.7,3.80266]
[1727359460282,0.0381239,2629.9,2629.8,3.80257]
[1727359462543,0.0381239,2629.9,2629.6,3.80278]
[1727359462742,0.0381239,2629.9,2629.7,3.80261]
[1727359463380,0.0381239,2629.9,2629.6,3.80276]
[1727359463599,0.0381239,2629.9,2629.8,3.80257]
[1727359463877,0.0381239,2629.9,2629.4,0.8247]
[1727359463878,0.0381239,2629.9,2629.7,3.80269]
[1727359464049,4.61948617,2629.8,2629.3,3.8032]
[1727359464236,4.61948617,2629.8,2629.4,3.80313]
[1727359464443,4.61948617,2629.8,2629.5,3.80297]
[1727359464683,0.77564988,2629.8,2629.6,3.80285]
[1727359464991,0.0381239,2629.9,2629.8,3.80257]
[1727359466483,0.0381239,2629.9,2629.6,3.80273]
[1727359466641,0.0381239,2629.9,2629.5,0.8108]
[1727359466642,0.0381239,2629.9,2629.8,3.80257]
[1727359466849,0.0381239,2629.9,2629.6,3.80282]
[1727359467067,0.0381239,2629.9,2629.5,3.80293]
[1727359467322,0.0381239,2629.9,2629.6,3.80284]
[1727359467679,0.8149239,2629.9,2629.7,3.80269]
[1727359467983,0.8149239,2629.9,2629.6,3.80284]
[1727359468920,0.0381239,2629.9,2629.8,3.80257]
[1727359471600,0.0381239,2629.9,2629.7,3.80264]
[1727359471795,0.0381239,2629.9,2629.8,3.80257]
[1727359473523,0.0381239,2629.9,2629.7,3.80269]
[1727359473888,0.8225,2629.8,2629.6,3.80279]
[1727359474214,0.8225,2629.8,2629.5,3.80294]
[1727359474723,0.8225,2629.8,2629.6,3.80274]
[1727359474939,0.0381239,2629.9,2629.3,5.20786]
[1727359475112,0.0381239,2629.9,2629.2,0.8079]
[1727359475314,0.0381239,2629.9,2629.6,3.80275]
[1727359475717,0.0381239,2629.9,2629.2,4.61128]
[1727359475718,0.0381239,2629.9,2629.7,3.80267]
[1727359475919,0.0381239,2629.9,2629.8,3.80257]
[1727359479707,0.0381239,2629.9,2629.7,3.80271]
[1727359479936,0.0381239,2629.9,2629.7,3.80265]
[1727359480135,0.0381239,2629.9,2629.8,3.80257]
[1727359482744,0.0381239,2629.9,2629.7,3.80265]
[1727359482943,0.0381239,2629.9,2629.7,7.60528]
[1727359483170,0.0381239,2629.9,2629.8,3.80257]
[1727359483444,0.7734,2629.8,2629.2,0.79281972]
[1727359483678,0.7734,2629.8,2629.4,3.80306]
[1727359484263,0.7734,2629.8,2629.6,3.80284]
[1727359484788,0.7734,2629.8,2629.7,3.80271]
[1727359485089,0.0381239,2629.9,2629.7,3.80271]
[1727359485090,0.0381239,2629.9,2629.8,3.80257]
[1727359485252,0.0381239,2629.9,2629.7,3.80271]
[1727359485456,0.0381239,2629.9,2629.7,3.80264]
[1727359486123,0.0381239,2629.9,2629.6,3.80279]
[1727359486290,0.0381239,2629.9,2629.4,3.80304]
[1727359486447,3.8405439,2629.9,2629.4,7.60609]
[1727359486886,3.8405439,2629.9,2629.4,3.80304]
[1727359486887,0.0381239,2629.9,2629.4,3.80304]
[1727359487294,0.0381239,2629.9,2629.4,7.6061]
[1727359487581,0.0381239,2629.9,2629.5,3.80286]
[1727359488149,0.8153,2629.4,2629.0,0.79281972]
[1727359488346,0.8153,2629.4,2628.9,5.21050967]
[1727359488347,4.61854,2629.4,2628.9,5.21050967]
[1727359488586,8.41863281,2629.4,2628.9,5.21050967]
[1727359488796,8.41863281,2629.4,2628.9,3.80378]
[1727359489144,8.8971277,2629.4,2628.9,3.80378]
[1727359489343,3.80336,2629.3,2628.8,3.804]
[1727359489590,8.8971277,2629.4,2628.6,1.55051972]
[1727359489591,0.8153,2629.4,2629.1,3.80351]
[1727359490590,0.8153,2629.4,2628.9,3.80378]
[1727359490591,0.8153,2629.4,2629.0,3.80368]
[1727359490799,4.61845,2629.4,2629.0,3.80368]
[1727359491137,4.61845,2629.4,2628.9,3.80386]
[1727359491138,9.64079109,2629.4,2628.9,3.80386]
[1727359491438,9.64079109,2629.4,2629.0,3.80369]
[1727359491592,9.64079109,2629.4,2629.0,3.80363]
[1727359491593,0.8153,2629.4,2629.0,3.80363]
[1727359491937,0.8153,2629.4,2629.2,3.80336]
[1727359492141,0.8153,2629.4,2629.3,3.80329]
[1727359492290,4.57483,2629.8,2629.3,3.80329]
[1727359492489,7.60292281,2629.7,2629.2,3.80336]
[1727359492735,3.80274,2629.7,2629.2,3.80336]
[1727359493143,3.80018281,2629.6,2629.2,3.80336]
[1727359493436,3.80018281,2629.6,2629.1,3.80353]
[1727359493603,3.80018281,2629.6,2629.2,3.80336]
[1727359494297,3.80018281,2629.6,2629.1,3.80353]
[1727359494298,4.57481,2629.8,2629.3,3.80328]
[1727359494731,3.80018281,2629.7,2629.3,3.80328]
[1727359495104,4.57481,2629.8,2629.3,3.80328]
[1727359495306,9.28717474,2629.8,2629.3,3.80328]
[1727359495536,0.7722,2629.8,2628.8,3.804]
[1727359495707,0.7722,2629.8,2629.6,3.80273]
[1727359495921,0.0381239,2629.9,2629.7,3.80271]
[1727359496237,0.0381239,2629.9,2629.8,3.80257]
[1727359496995,0.0381239,2629.9,2629.7,3.80271]
[1727359497233,0.0381239,2629.9,2629.8,3.80257]
[1727359498054,0.0381239,2629.9,2629.7,3.80269]
[1727359498243,0.0381239,2629.9,2629.7,7.60538]
[1727359498457,0.0381239,2629.9,2629.8,3.80257]
[1727359498786,0.0381239,2629.9,2629.7,3.80269]
[1727359498976,3.80018281,2629.8,2629.5,3.80291]
[1727359499137,4.58328281,2629.8,2629.5,3.8029]
[1727359499337,0.7831,2629.8,2629.6,3.80278]
[1727359499869,0.7831,2629.8,2629.5,3.8029]
[1727359499870,0.7831,2629.8,2629.7,3.80271]
[1727359500086,0.0381239,2629.9,2629.7,3.80271]
[1727359500451,0.0381239,2629.9,2629.6,3.80284]
[1727359500652,0.0381239,2629.9,2629.7,3.8027]
[1727359500858,0.0381239,2629.9,2629.6,7.60561]
[1727359501043,0.0381239,2629.9,2629.7,3.80263]
[1727359501244,0.0381239,2629.9,2629.6,3.80274]
[1727359501479,0.0381239,2629.9,2629.6,3.80278]
[1727359501843,0.0381239,2629.9,2629.8,3.80257]
[1727359502989,0.0381239,2629.9,2629.4,0.788]
[1727359503301,0.0381239,2629.9,2628.9,1.58563944]
[1727359503302,3.80018281,2629.6,2628.9,5.19808068]
[1727359503462,0.7562,2629.8,2629.6,3.80276]
[1727359503648,0.7562,2629.8,2629.7,3.80271]
[1727359504163,0.0381239,2629.9,2629.8,4.59447]
[1727359505439,0.0381239,2629.9,2629.5,0.8128]
[1727359505628,0.0381239,2629.9,2629.5,3.80296]
[1727359505834,0.0381239,2629.9,2629.1,4.58971972]
[1727359505835,0.88363657,2629.9,2629.1,4.58971972]
[1727359506041,0.7599,2629.1,2628.7,1.40575872]
[1727359506345,0.7599,2628.8,2628.1,3.80495]
[1727359506497,3.80018281,2628.3,2628.0,1.40600509]
[1727359506702,3.80018281,2628.3,2627.9,4.59807972]
[1727359506703,0.8267,2628.2,2627.9,3.80526]
[1727359506944,0.8267,2628.2,2628.1,3.80503]
[1727359507144,0.8267,2628.2,2627.9,3.80526]
[1727359507145,4.62688281,2628.2,2627.9,3.80526]
[1727359507300,4.62688281,2628.2,2627.7,5.21156509]
[1727359507301,4.62688281,2628.2,2627.7,6.00432481]
[1727359507500,4.62688281,2628.2,2627.8,3.80536]
[1727359507699,4.62688281,2628.2,2627.9,3.80528]
[1727359507939,3.8044,2628.6,2627.9,3.80522]
[1727359507940,0.7898,2628.5,2627.9,3.80522]
[1727359508142,3.80018281,2628.1,2627.3,2.19748725]
[1727359508312,3.80018281,2627.4,2626.9,0.79281972]
[1727359508516,3.80532,2627.9,2626.7,1.62376334]
[1727359508517,3.80018281,2627.2,2626.7,0.0381239]
[1727359508834,0.7898,2627.3,2626.9,3.80675]
[1727359509032,0.7898,2627.3,2626.7,3.8451439]
[1727359509247,0.7898,2627.3,2626.8,3.80689]
[1727359509432,0.7898,2627.3,2626.7,3.8451539]
[1727359509833,0.7898,2627.3,2627.0,3.8065]
[1727359510243,0.7898,2627.3,2626.9,3.80673]
[1727359510444,7.68517638,2627.9,2626.7,0.0381239]
[1727359510445,0.7857,2627.7,2627.2,3.80633]
[1727359510957,4.59131,2627.7,2627.0,3.8066]
[1727359511267,0.7857,2627.7,2626.7,0.0381239]
[1727359511460,0.7857,2627.7,2627.2,3.80622]
[1727359511962,0.7857,2627.7,2627.3,3.80616]
[1727359512260,0.7857,2627.7,2627.4,3.80603]
[1727359513262,0.8178,2628.1,2627.6,3.80575]
[1727359513820,0.8178,2628.1,2627.7,3.8056]
[1727359514227,0.8178,2628.1,2627.8,3.80544]
[1727359514449,0.7685,2628.6,2627.8,3.80544]
[1727359514652,0.7685,2628.6,2628.1,3.805]
[1727359514832,0.7685,2628.6,2628.0,3.80516]
[1727359515023,0.7685,2628.6,2628.1,3.80498]
[1727359515217,0.7685,2628.6,2627.8,3.8054]
[1727359515423,0.7685,2628.6,2628.0,3.80516]
[1727359515861,0.7685,2628.6,2628.1,3.80502]
[1727359516731,0.7685,2628.6,2628.0,3.80516]
[1727359517265,0.7685,2628.6,2628.0,3.80506]
[1727359517574,0.7685,2628.6,2628.1,3.805]
[1727359517960,0.7685,2628.6,2628.0,3.80506]
[1727359518166,0.7685,2628.6,2628.0,7.61014]
[1727359518333,0.7685,2628.6,2628.0,3.80506]
[1727359518536,1.69429264,2628.6,2627.8,3.8054]
[1727359518724,4.68517638,2628.8,2627.6,3.80566]
[1727359518725,0.7532,2628.1,2627.6,3.80566]
[1727359519057,0.7532,2628.1,2627.7,3.80559]
[1727359519426,0.7532,2628.1,2627.8,3.80543]
[1727359520640,0.7532,2628.1,2627.7,3.8055]
[1727359520856,0.7532,2628.1,2627.6,3.80563]
[1727359521058,3.90040922,2628.0,2627.4,3.80601]
[1727359521265,3.80527,2628.0,2627.5,3.80586]
[1727359521623,0.7532,2628.1,2627.1,0.7567]
[1727359521624,0.7532,2628.1,2627.6,3.80567]
[1727359521824,0.7532,2628.1,2627.6,3.80572]
[1727359522261,3.80533,2627.9,2627.4,3.80594]
[1727359522466,0.7796,2627.9,2627.4,3.80594]
[1727359522671,0.09514131,2627.8,2627.4,3.80594]
[1727359523166,0.7796,2627.9,2627.4,3.80594]
[1727359523377,0.7796,2627.9,2627.5,3.80589]
[1727359523663,3.80549,2627.8,2627.3,3.80606]
[1727359524064,0.09514378,2627.8,2627.4,3.806]
[1727359525140,5.89246164,2627.9,2627.4,3.806]
[1727359525386,5.98760549,2627.9,2627.4,3.806]
[1727359525691,5.89246164,2627.9,2627.4,3.806]
[1727359525985,5.9876055,2627.9,2627.4,3.80596]
[1727359526184,0.7796,2627.9,2627.5,3.80588]
[1727359526390,0.7796,2627.9,2627.7,3.80548]
[1727359526550,0.8217,2628.3,2627.9,3.80531]
[1727359526893,4.62644,2628.3,2627.9,3.80531]
[1727359527264,4.62644,2628.3,2627.8,3.80545]
[1727359528294,0.8217,2628.3,2628.0,3.80517]
[1727359528462,0.8217,2628.3,2627.9,3.80528]
[1727359528659,0.8217,2628.3,2627.9,3.80525]
[1727359528862,0.8217,2628.3,2628.0,3.80504]
[1727359529157,0.7753,2628.5,2628.3,3.80472]
[1727359529362,0.7753,2628.5,2627.8,3.80541]
[1727359529559,0.7753,2628.5,2628.0,3.80509]
[1727359529754,0.7753,2628.5,2628.1,3.80502]
[1727359530063,4.57979,2628.5,2628.0,3.80509]
[1727359530394,0.7753,2628.5,2628.1,3.80502]
[1727359530891,0.7753,2628.5,2628.2,3.80475]